[Event "*** SCC Grand Prix: Titled Tuesday Blitz"]
[Site "Chess.com"]
[Date "2020.06.02"]
[Round "1"]
[White "Shtembuliak"]
[Black "Kostya26"]
[Result "1-0"]
[WhiteElo "2878"]
[BlackElo "2428"]
[TimeControl "180+1"]
[EndTime "10:06:53 PDT"]
[Termination "Shtembuliak won by checkmate"]

1. c4 {[%clk 0:03:00.9]} 1... e6 {[%clk 0:02:59.6]} 2. Nc3 {[%clk 0:03:00.5]}
2... d5 {[%clk 0:02:59.8]} 3. d4 {[%clk 0:03:00.7]} 3... Nf6 {[%clk 0:03:00]} 4.
cxd5 {[%clk 0:03:00.7]} 4... exd5 {[%clk 0:02:59.8]} 5. Bg5 {[%clk 0:03:00.8]}
5... c6 {[%clk 0:03:00.1]} 6. e3 {[%clk 0:03:01.3]} 6... Be7 {[%clk 0:02:59.6]}
7. Bd3 {[%clk 0:03:01.1]} 7... O-O {[%clk 0:02:59.6]} 8. Nge2 {[%clk 0:03:01.3]}
8... Re8 {[%clk 0:02:59.4]} 9. O-O {[%clk 0:03:01.5]} 9... Ne4 {[%clk
0:02:54.7]} 10. Bf4 {[%clk 0:02:52.9]} 10... Bf5 {[%clk 0:02:39.1]} 11. Bxe4
{[%clk 0:02:42.2]} 11... Bxe4 {[%clk 0:02:35]} 12. Nxe4 {[%clk 0:02:42.3]} 12...
dxe4 {[%clk 0:02:35.9]} 13. Qb3 {[%clk 0:02:42]} 13... Qb6 {[%clk 0:02:33.2]}
14. Qc2 {[%clk 0:02:22.2]} 14... Nd7 {[%clk 0:02:20.2]} 15. Ng3 {[%clk
0:02:06.8]} 15... c5 {[%clk 0:01:54.8]} 16. dxc5 {[%clk 0:01:58.6]} 16... Nxc5
{[%clk 0:01:51.5]} 17. Nxe4 {[%clk 0:01:57.5]} 17... Nxe4 {[%clk 0:01:45.9]} 18.
Qxe4 {[%clk 0:01:58.4]} 18... Bd6 {[%clk 0:01:39.5]} 19. Qf3 {[%clk 0:01:53.1]}
19... Bxf4 {[%clk 0:01:35.3]} 20. Qxf4 {[%clk 0:01:54]} 20... Qxb2 {[%clk
0:01:34]} 21. Rfb1 {[%clk 0:01:50.7]} 21... Qc3 {[%clk 0:01:29.3]} 22. Rc1
{[%clk 0:01:49]} 22... Qe5 {[%clk 0:01:19.7]} 23. Qxe5 {[%clk 0:01:48]} 23...
Rxe5 {[%clk 0:01:20.6]} 24. Rc7 {[%clk 0:01:48.1]} 24... Rb5 {[%clk 0:01:15.9]}
25. Rd1 {[%clk 0:01:46.5]} 25... Rb2 {[%clk 0:01:06.1]} 26. g4 {[%clk
0:01:42.6]} 26... Rxa2 {[%clk 0:00:55.9]} 27. Rdd7 {[%clk 0:01:42.6]} 27... Rf8
{[%clk 0:00:55.7]} 28. Rxb7 {[%clk 0:01:43.2]} 28... a5 {[%clk 0:00:56.1]} 29.
Ra7 {[%clk 0:01:43.8]} 29... a4 {[%clk 0:00:52.6]} 30. Kg2 {[%clk 0:01:44]}
30... a3 {[%clk 0:00:52.1]} 31. Rd3 {[%clk 0:01:44.2]} 31... g6 {[%clk
0:00:51.2]} 32. Rdxa3 {[%clk 0:01:43.3]} 32... Rxa3 {[%clk 0:00:51.6]} 33. Rxa3
{[%clk 0:01:44.2]} 33... Kg7 {[%clk 0:00:51.4]} 34. h4 {[%clk 0:01:41]} 34...
Rc8 {[%clk 0:00:49.3]} 35. Kg3 {[%clk 0:01:40.9]} 35... Rc5 {[%clk 0:00:48]} 36.
Kf4 {[%clk 0:01:36.4]} 36... Rc4+ {[%clk 0:00:47.5]} 37. e4 {[%clk 0:01:35.9]}
37... Rc2 {[%clk 0:00:46.2]} 38. f3 {[%clk 0:01:33.3]} 38... Rh2 {[%clk
0:00:46.2]} 39. Kg3 {[%clk 0:01:33.7]} 39... Rh1 {[%clk 0:00:46.5]} 40. Ra5
{[%clk 0:01:34.2]} 40... Rg1+ {[%clk 0:00:45.3]} 41. Kf4 {[%clk 0:01:33.9]}
41... Rh1 {[%clk 0:00:44.6]} 42. h5 {[%clk 0:01:30.2]} 42... Rb1 {[%clk
0:00:41.3]} 43. g5 {[%clk 0:01:19.4]} 43... gxh5 {[%clk 0:00:35.7]} 44. Ra6
{[%clk 0:01:19.4]} 44... Rh1 {[%clk 0:00:26.3]} 45. Rh6 {[%clk 0:01:18.9]} 45...
Rh2 {[%clk 0:00:26.3]} 46. Kg3 {[%clk 0:01:18.8]} 46... Rh1 {[%clk 0:00:26.5]}
47. f4 {[%clk 0:01:12.8]} 47... Rg1+ {[%clk 0:00:23.7]} 48. Kf2 {[%clk
0:01:11.7]} 48... Rh1 {[%clk 0:00:22.4]} 49. e5 {[%clk 0:01:06.6]} 49... Rh4
{[%clk 0:00:20.8]} 50. Kg3 {[%clk 0:01:05.7]} 50... Rh1 {[%clk 0:00:20.8]} 51.
Kg2 {[%clk 0:01:05.7]} 51... Rh4 {[%clk 0:00:20.6]} 52. Kf3 {[%clk 0:01:05.5]}
52... Rh3+ {[%clk 0:00:20.5]} 53. Ke4 {[%clk 0:01:05.8]} 53... Rh1 {[%clk
0:00:19.9]} 54. Kf5 {[%clk 0:01:04.5]} 54... Kg8 {[%clk 0:00:18.9]} 55. Ra6
{[%clk 0:01:00.1]} 55... Kg7 {[%clk 0:00:18.1]} 56. Ra7 {[%clk 0:01:00.1]} 56...
Kg8 {[%clk 0:00:18.3]} 57. Kf6 {[%clk 0:00:59.8]} 57... h4 {[%clk 0:00:17.9]}
58. Ra8# {[%clk 0:00:59.4]} 1-0

[Event "*** SCC Grand Prix: Titled Tuesday Blitz"]
[Site "Chess.com"]
[Date "2020.06.02"]
[Round "1"]
[White "Elbek_Jumanov"]
[Black "Yaacovn"]
[Result "0-1"]
[WhiteElo "2427"]
[BlackElo "2873"]
[TimeControl "180+1"]
[EndTime "10:06:53 PDT"]
[Termination "Yaacovn won by resignation"]

1. c4 {[%clk 0:02:59.5]} 1... b6 {[%clk 0:02:59]} 2. Nf3 {[%clk 0:02:58.7]} 2...
Bb7 {[%clk 0:02:59.5]} 3. g3 {[%clk 0:02:59.4]} 3... c5 {[%clk 0:03:00]} 4. Bg2
{[%clk 0:02:58.7]} 4... g6 {[%clk 0:03:00.5]} 5. O-O {[%clk 0:02:58.9]} 5... Bg7
{[%clk 0:02:59.7]} 6. Nc3 {[%clk 0:02:59.4]} 6... Nf6 {[%clk 0:03:00.2]} 7. b3
{[%clk 0:02:56.6]} 7... d5 {[%clk 0:02:58.8]} 8. cxd5 {[%clk 0:02:55.4]} 8...
Nxd5 {[%clk 0:02:59.1]} 9. Bb2 {[%clk 0:02:55.8]} 9... O-O {[%clk 0:02:59.2]}
10. Rc1 {[%clk 0:02:55.1]} 10... Nc6 {[%clk 0:02:58.3]} 11. d3 {[%clk
0:02:54.9]} 11... Ncb4 {[%clk 0:02:57.4]} 12. Qd2 {[%clk 0:02:36.3]} 12... Nxc3
{[%clk 0:02:54.8]} 13. Bxc3 {[%clk 0:02:35.3]} 13... Bxc3 {[%clk 0:02:55.2]} 14.
Rxc3 {[%clk 0:02:34.6]} 14... Qd6 {[%clk 0:02:55.2]} 15. Qh6 {[%clk 0:02:09.5]}
15... Bxf3 {[%clk 0:02:53.7]} 16. Bxf3 {[%clk 0:02:08.5]} 16... Rad8 {[%clk
0:02:50.4]} 17. Rc4 {[%clk 0:02:01.7]} 17... Qf6 {[%clk 0:02:50.1]} 18. a3
{[%clk 0:01:57.3]} 18... Nd5 {[%clk 0:02:46.5]} 19. b4 {[%clk 0:01:42.9]} 19...
cxb4 {[%clk 0:02:41]} 20. axb4 {[%clk 0:01:42.7]} 20... e6 {[%clk 0:02:35.2]}
21. b5 {[%clk 0:01:39.5]} 21... Nc3 {[%clk 0:02:29.6]} 22. Rb4 {[%clk
0:01:21.9]} 22... Rd4 {[%clk 0:02:25.8]} 23. Rb3 {[%clk 0:01:19]} 23... Rc8
{[%clk 0:02:21]} 24. Rc1 {[%clk 0:01:15.7]} 24... Rd7 {[%clk 0:02:16.1]} 25. Kg2
{[%clk 0:01:10.9]} 25... Rdc7 {[%clk 0:02:13.8]} 26. Re1 {[%clk 0:01:04.3]}
26... Qe5 {[%clk 0:02:08.5]} 27. Bc6 {[%clk 0:01:00.2]} 27... a5 {[%clk
0:02:04.1]} 28. Rc1 {[%clk 0:00:57.5]} 28... Nxe2 {[%clk 0:01:59.7]} 29. Rc4
{[%clk 0:00:56.8]} 29... Nd4 {[%clk 0:01:57.3]} 30. Rbc3 {[%clk 0:00:56.5]}
30... Nxc6 {[%clk 0:01:53.8]} 31. bxc6 {[%clk 0:00:55.8]} 31... Rxc6 {[%clk
0:01:52.4]} 32. Rxc6 {[%clk 0:00:54.6]} 32... Rxc6 {[%clk 0:01:52.4]} 33. Rxc6
{[%clk 0:00:53.8]} 33... Qd5+ {[%clk 0:01:52.6]} 34. Kg1 {[%clk 0:00:53.7]}
34... Qxc6 {[%clk 0:01:52.7]} 35. Qg5 {[%clk 0:00:54.6]} 35... Qc5 {[%clk
0:01:52.1]} 36. Qd8+ {[%clk 0:00:54.1]} 36... Kg7 {[%clk 0:01:52.6]} 37. d4
{[%clk 0:00:52.4]} 37... Qc1+ {[%clk 0:01:52.3]} 38. Kg2 {[%clk 0:00:52.7]}
38... Qc6+ {[%clk 0:01:52.7]} 39. Kg1 {[%clk 0:00:52]} 39... a4 {[%clk 0:01:53]}
40. h4 {[%clk 0:00:49.5]} 40... h5 {[%clk 0:01:52.2]} 41. g4 {[%clk 0:00:48]}
41... hxg4 {[%clk 0:01:47.8]} 42. h5 {[%clk 0:00:46.9]} 42... a3 {[%clk
0:01:32]} 43. h6+ {[%clk 0:00:41.7]} 43... Kxh6 {[%clk 0:01:27.4]} 44. Qh8+
{[%clk 0:00:40.4]} 44... Kg5 {[%clk 0:01:26.8]} 45. Qe5+ {[%clk 0:00:38.3]}
45... f5 {[%clk 0:01:26.8]} 46. Qe3+ {[%clk 0:00:37.6]} 46... Kf6 {[%clk
0:01:26.1]} 47. Qe5+ {[%clk 0:00:35]} 47... Kf7 {[%clk 0:01:26.4]} 48. Qh8
{[%clk 0:00:35]} 48... a2 {[%clk 0:01:21.8]} 49. Qh7+ {[%clk 0:00:34.7]} 49...
Kf8 {[%clk 0:01:22.2]} 50. Qh8+ {[%clk 0:00:34.5]} 50... Ke7 {[%clk 0:01:22.6]}
51. Qg7+ {[%clk 0:00:34.4]} 51... Kd8 {[%clk 0:01:23.1]} 52. Qf8+ {[%clk
0:00:34.1]} 52... Kc7 {[%clk 0:01:23.1]} 53. Qg7+ {[%clk 0:00:33]} 53... Qd7
{[%clk 0:01:23.2]} 54. Qe5+ {[%clk 0:00:32.8]} 54... Qd6 {[%clk 0:01:22.6]} 55.
Qg7+ {[%clk 0:00:32.3]} 55... Kc6 {[%clk 0:01:22]} 0-1

[Event "*** SCC Grand Prix: Titled Tuesday Blitz"]
[Site "Chess.com"]
[Date "2020.06.02"]
[Round "1"]
[White "Piotrek1979"]
[Black "obliviate12"]
[Result "0-1"]
[WhiteElo "2412"]
[BlackElo "2824"]
[TimeControl "180+1"]
[EndTime "10:06:55 PDT"]
[Termination "obliviate12 won by resignation"]

1. Nf3 {[%clk 0:02:53.5]} 1... Nf6 {[%clk 0:02:59.2]} 2. g3 {[%clk 0:02:53]}
2... d5 {[%clk 0:02:58.8]} 3. Bg2 {[%clk 0:02:49.6]} 3... e6 {[%clk 0:02:59.7]}
4. c4 {[%clk 0:02:49]} 4... Be7 {[%clk 0:02:58.6]} 5. O-O {[%clk 0:02:48.9]}
5... O-O {[%clk 0:02:58.5]} 6. d3 {[%clk 0:02:48.2]} 6... c5 {[%clk 0:02:52.9]}
7. Nc3 {[%clk 0:02:47.7]} 7... Nc6 {[%clk 0:02:52.8]} 8. a3 {[%clk 0:02:44.2]}
8... d4 {[%clk 0:02:37.4]} 9. Na4 {[%clk 0:02:42.8]} 9... a5 {[%clk 0:02:37.7]}
10. Bd2 {[%clk 0:02:39.1]} 10... e5 {[%clk 0:02:36.2]} 11. Rb1 {[%clk
0:02:26.3]} 11... Bd7 {[%clk 0:02:22.4]} 12. Ng5 {[%clk 0:02:20.5]} 12... Qc7
{[%clk 0:01:51]} 13. Ne4 {[%clk 0:02:19.4]} 13... Nxe4 {[%clk 0:01:50.4]} 14.
Bxe4 {[%clk 0:02:20.3]} 14... f5 {[%clk 0:01:44.9]} 15. Bd5+ {[%clk 0:02:19.5]}
15... Kh8 {[%clk 0:01:45.2]} 16. e3 {[%clk 0:02:13]} 16... Bd6 {[%clk
0:01:36.9]} 17. b3 {[%clk 0:02:03]} 17... f4 {[%clk 0:01:30.7]} 18. exf4 {[%clk
0:02:00.6]} 18... exf4 {[%clk 0:01:30.4]} 19. Qh5 {[%clk 0:01:53.7]} 19... Bf5
{[%clk 0:01:20.5]} 20. Nb2 {[%clk 0:01:45.9]} 20... Rf6 {[%clk 0:01:12.1]} 21.
Be4 {[%clk 0:01:41.2]} 21... Raf8 {[%clk 0:01:05.5]} 22. f3 {[%clk 0:01:38.6]}
22... fxg3 {[%clk 0:01:03.3]} 23. f4 {[%clk 0:01:32.2]} 23... Rh6 {[%clk
0:01:00.3]} 24. Qf3 {[%clk 0:01:31.5]} 24... Rxh2 {[%clk 0:00:50.8]} 25. Be1
{[%clk 0:00:39.5]} 25... g2 {[%clk 0:00:35.3]} 26. Rf2 {[%clk 0:00:21.7]} 26...
Rh3 {[%clk 0:00:32.4]} 27. Qxg2 {[%clk 0:00:21.1]} 27... Rh6 {[%clk 0:00:30.6]}
28. Bxf5 {[%clk 0:00:19.6]} 28... Rxf5 {[%clk 0:00:31.5]} 29. Qe4 {[%clk
0:00:19.8]} 29... Qf7 {[%clk 0:00:29.9]} 30. Rg2 {[%clk 0:00:19.6]} 30... Re6
{[%clk 0:00:29.5]} 31. Qf3 {[%clk 0:00:18.5]} 31... Rxf4 {[%clk 0:00:29.6]} 0-1

[Event "*** SCC Grand Prix: Titled Tuesday Blitz"]
[Site "Chess.com"]
[Date "2020.06.02"]
[Round "1"]
[White "Chopper1905"]
[Black "ditkin25"]
[Result "1-0"]
[WhiteElo "2930"]
[BlackElo "2439"]
[TimeControl "180+1"]
[EndTime "10:06:56 PDT"]
[Termination "Chopper1905 won by resignation"]

1. f4 {[%clk 0:02:55.4]} 1... c5 {[%clk 0:02:53.6]} 2. Nf3 {[%clk 0:02:55.4]}
2... Nc6 {[%clk 0:02:53.7]} 3. g3 {[%clk 0:02:55.8]} 3... g6 {[%clk 0:02:54]} 4.
Bg2 {[%clk 0:02:56.2]} 4... Bg7 {[%clk 0:02:54.6]} 5. O-O {[%clk 0:02:55.9]}
5... Nf6 {[%clk 0:02:54.8]} 6. d3 {[%clk 0:02:56.2]} 6... d5 {[%clk 0:02:50.7]}
7. c3 {[%clk 0:02:56]} 7... O-O {[%clk 0:02:47.6]} 8. Na3 {[%clk 0:02:54.5]}
8... a6 {[%clk 0:02:44.4]} 9. Qe1 {[%clk 0:02:49.5]} 9... b5 {[%clk 0:02:41]}
10. e4 {[%clk 0:02:47.9]} 10... dxe4 {[%clk 0:02:40.2]} 11. dxe4 {[%clk
0:02:47.9]} 11... Bb7 {[%clk 0:02:40.7]} 12. e5 {[%clk 0:02:47]} 12... Nd5
{[%clk 0:02:33.8]} 13. Ng5 {[%clk 0:02:37.9]} 13... e6 {[%clk 0:02:29.8]} 14.
Ne4 {[%clk 0:02:35.4]} 14... c4 {[%clk 0:02:05.4]} 15. Qf2 {[%clk 0:02:18.1]}
15... Qc7 {[%clk 0:01:39.5]} 16. Nc2 {[%clk 0:02:16.6]} 16... b4 {[%clk
0:01:32.7]} 17. Bd2 {[%clk 0:02:10.2]} 17... bxc3 {[%clk 0:01:22]} 18. bxc3
{[%clk 0:02:10.7]} 18... Rfd8 {[%clk 0:01:22.1]} 19. Rab1 {[%clk 0:02:07]} 19...
Rab8 {[%clk 0:01:17.6]} 20. Nd6 {[%clk 0:02:03.2]} 20... Bf8 {[%clk 0:01:16.4]}
21. Nxc4 {[%clk 0:01:58.6]} 21... Nd4 {[%clk 0:00:53.3]} 22. Nxd4 {[%clk
0:01:34.4]} 22... Qxc4 {[%clk 0:00:53.3]} 23. Rb3 {[%clk 0:01:34.9]} 23... Bc5
{[%clk 0:00:48.8]} 24. Rfb1 {[%clk 0:01:33.3]} 24... Rd7 {[%clk 0:00:35.1]} 25.
Kh1 {[%clk 0:01:19.2]} 25... Nxf4 {[%clk 0:00:15.6]} 26. Bxf4 {[%clk 0:01:09.6]}
26... Bxg2+ {[%clk 0:00:14.5]} 27. Kxg2 {[%clk 0:01:09.7]} 27... Rxb3 {[%clk
0:00:15.2]} 28. Rxb3 {[%clk 0:01:07.5]} 28... Qd5+ {[%clk 0:00:14.4]} 29. Qf3
{[%clk 0:01:04.8]} 29... Qc4 {[%clk 0:00:14.6]} 30. Rb8+ {[%clk 0:00:54.5]}
30... Kg7 {[%clk 0:00:14.5]} 31. Bg5 {[%clk 0:00:46.6]} 31... f5 {[%clk
0:00:14.6]} 32. exf6+ {[%clk 0:00:35.9]} 32... Kf7 {[%clk 0:00:15]} 33. Rh8
{[%clk 0:00:36.4]} 33... Bxd4 {[%clk 0:00:07.2]} 34. Rxh7+ {[%clk 0:00:36.1]}
34... Kg8 {[%clk 0:00:07.8]} 35. Rxd7 {[%clk 0:00:33.9]} 35... Qxa2+ {[%clk
0:00:08.5]} 36. Kh3 {[%clk 0:00:33.5]} 1-0

[Event "*** SCC Grand Prix: Titled Tuesday Blitz"]
[Site "Chess.com"]
[Date "2020.06.02"]
[Round "1"]
[White "Ariadna_Atreides"]
[Black "RestartingChess"]
[Result "1/2-1/2"]
[WhiteElo "2045"]
[BlackElo "2481"]
[TimeControl "180+1"]
[EndTime "10:06:57 PDT"]
[Termination "Game drawn by agreement"]

1. d4 {[%clk 0:03:00.9]} 1... Nf6 {[%clk 0:02:58.2]} 2. Nf3 {[%clk 0:03:00.6]}
2... g6 {[%clk 0:02:58.2]} 3. c4 {[%clk 0:02:59.1]} 3... Bg7 {[%clk 0:02:58.6]}
4. Nc3 {[%clk 0:02:59.7]} 4... d5 {[%clk 0:02:58.9]} 5. cxd5 {[%clk 0:02:59.7]}
5... Nxd5 {[%clk 0:02:59]} 6. Na4 {[%clk 0:03:00.4]} 6... O-O {[%clk 0:02:52.6]}
7. e4 {[%clk 0:03:00]} 7... Nb6 {[%clk 0:02:52.5]} 8. Be3 {[%clk 0:03:00.6]}
8... Bg4 {[%clk 0:02:47.5]} 9. Nc5 {[%clk 0:02:58.6]} 9... Qc8 {[%clk
0:02:39.4]} 10. Qc2 {[%clk 0:02:53.7]} 10... N8d7 {[%clk 0:02:35.3]} 11. O-O-O
{[%clk 0:02:52.9]} 11... Nxc5 {[%clk 0:02:26.1]} 12. Qxc5 {[%clk 0:02:41.7]}
12... Qe6 {[%clk 0:02:20.9]} 13. Kb1 {[%clk 0:02:37.8]} 13... Qxe4+ {[%clk
0:02:17.3]} 14. Bd3 {[%clk 0:02:37.8]} 14... Qc6 {[%clk 0:02:09.9]} 15. Qxc6
{[%clk 0:02:35.5]} 15... bxc6 {[%clk 0:02:10]} 16. Rc1 {[%clk 0:02:33]} 16...
Nd5 {[%clk 0:02:10.1]} 17. Be4 {[%clk 0:02:14.9]} 17... Nxe3 {[%clk 0:01:20.7]}
18. fxe3 {[%clk 0:02:13.5]} 18... Bh6 {[%clk 0:01:21.3]} 19. Rxc6 {[%clk
0:02:08.7]} 19... Bxe3 {[%clk 0:01:19.7]} 20. Rxc7 {[%clk 0:02:08.8]} 20... Rab8
{[%clk 0:01:14.7]} 21. Rxe7 {[%clk 0:01:59.8]} 21... Bxf3 {[%clk 0:01:13.2]} 22.
gxf3 {[%clk 0:01:50.5]} 22... Bxd4 {[%clk 0:01:13.4]} 23. b3 {[%clk 0:01:50.3]}
23... a5 {[%clk 0:01:13.7]} 24. Bd5 {[%clk 0:01:48.8]} 24... a4 {[%clk
0:01:13.1]} 25. Rd1 {[%clk 0:01:46.8]} 25... Bf6 {[%clk 0:01:11.3]} 26. Ra7
{[%clk 0:01:46.3]} 26... axb3 {[%clk 0:01:11]} 27. axb3 {[%clk 0:01:45.2]} 27...
Rfd8 {[%clk 0:01:10.1]} 28. Bxf7+ {[%clk 0:01:34.3]} 28... Kg7 {[%clk
0:01:09.8]} 29. Bc4+ {[%clk 0:01:20.8]} 29... Kh6 {[%clk 0:01:09.2]} 30. Rdd7
{[%clk 0:01:06.1]} 30... Rxd7 {[%clk 0:01:04.2]} 31. Rxd7 {[%clk 0:01:05.7]}
31... Ra8 {[%clk 0:01:05]} 32. b4 {[%clk 0:00:57.8]} 32... Ra4 {[%clk
0:01:02.5]} 33. Rb7 {[%clk 0:00:52.6]} 33... Bc3 {[%clk 0:01:02.2]} 34. Kc2
{[%clk 0:00:43.5]} 34... Rxb4 {[%clk 0:00:58.3]} 35. Rxb4 {[%clk 0:00:36.4]}
35... Bxb4 {[%clk 0:00:59.2]} 36. Kd3 {[%clk 0:00:34.8]} 36... Kg5 {[%clk
0:00:59.2]} 37. Ke2 {[%clk 0:00:34.1]} 37... Kf4 {[%clk 0:00:59]} 38. Kf2 {[%clk
0:00:31]} 38... h6 {[%clk 0:00:53.5]} 39. Kg2 {[%clk 0:00:30]} 39... g5 {[%clk
0:00:54.1]} 40. Be6 {[%clk 0:00:29.1]} 40... h5 {[%clk 0:00:51.7]} 41. h3 {[%clk
0:00:28.8]} 41... Be1 {[%clk 0:00:46.8]} 42. Bf7 {[%clk 0:00:28.5]} 42... h4
{[%clk 0:00:39]} 43. Be8 {[%clk 0:00:28.5]} 43... Bg3 {[%clk 0:00:32.7]} 44. Bd7
{[%clk 0:00:28.3]} 44... Ke3 {[%clk 0:00:33]} 45. Be8 {[%clk 0:00:28.2]} 45...
Bf4 {[%clk 0:00:33.6]} 46. Bd7 {[%clk 0:00:27.9]} 1/2-1/2

[Event "*** SCC Grand Prix: Titled Tuesday Blitz"]
[Site "Chess.com"]
[Date "2020.06.02"]
[Round "1"]
[White "TigrVShlyape"]
[Black "Grandmaster2B"]
[Result "1-0"]
[WhiteElo "2890"]
[BlackElo "2430"]
[TimeControl "180+1"]
[EndTime "10:06:58 PDT"]
[Termination "TigrVShlyape won by checkmate"]

1. d4 {[%clk 0:03:00.9]} 1... Nf6 {[%clk 0:02:59.8]} 2. Nf3 {[%clk 0:02:59.1]}
2... e6 {[%clk 0:02:59.9]} 3. Bf4 {[%clk 0:02:58.2]} 3... c5 {[%clk 0:02:58.5]}
4. e3 {[%clk 0:02:57.9]} 4... Nc6 {[%clk 0:02:58.4]} 5. Nbd2 {[%clk 0:02:57.3]}
5... d5 {[%clk 0:02:58.1]} 6. c3 {[%clk 0:02:56.3]} 6... Bd6 {[%clk 0:02:56.5]}
7. Bg3 {[%clk 0:02:55.8]} 7... O-O {[%clk 0:02:56.5]} 8. Bd3 {[%clk 0:02:54.6]}
8... cxd4 {[%clk 0:02:42.3]} 9. exd4 {[%clk 0:02:53.8]} 9... Qc7 {[%clk
0:02:30.2]} 10. Qe2 {[%clk 0:02:46.9]} 10... Re8 {[%clk 0:02:02.7]} 11. Ne5
{[%clk 0:02:43.9]} 11... g6 {[%clk 0:01:55.9]} 12. O-O {[%clk 0:02:35.1]} 12...
Nd7 {[%clk 0:01:49.7]} 13. f4 {[%clk 0:02:28.4]} 13... f6 {[%clk 0:01:39.2]} 14.
Ng4 {[%clk 0:01:48.3]} 14... f5 {[%clk 0:00:43.5]} 15. Ne5 {[%clk 0:01:47.2]}
15... Nf6 {[%clk 0:00:43.7]} 16. Bh4 {[%clk 0:01:42.3]} 16... Ne4 {[%clk
0:00:39.3]} 17. g4 {[%clk 0:01:26.3]} 17... Nxe5 {[%clk 0:00:22.9]} 18. fxe5
{[%clk 0:01:23.2]} 18... Be7 {[%clk 0:00:20.9]} 19. Bxe7 {[%clk 0:01:21.8]}
19... Qxe7 {[%clk 0:00:21.8]} 20. Qe3 {[%clk 0:01:10.9]} 20... Qh4 {[%clk
0:00:14.8]} 21. Be2 {[%clk 0:01:04.6]} 21... Qg5 {[%clk 0:00:11.4]} 22. Qxg5
{[%clk 0:01:03.2]} 22... Nxg5 {[%clk 0:00:12.3]} 23. c4 {[%clk 0:00:58.4]} 23...
b6 {[%clk 0:00:06]} 24. gxf5 {[%clk 0:00:56.2]} 24... gxf5 {[%clk 0:00:04.8]}
25. cxd5 {[%clk 0:00:56.2]} 25... exd5 {[%clk 0:00:05.7]} 26. Kf2 {[%clk
0:00:53.5]} 26... Ne6 {[%clk 0:00:05.1]} 27. Nf3 {[%clk 0:00:52.5]} 27... Kf7
{[%clk 0:00:03.3]} 28. Rac1 {[%clk 0:00:50.3]} 28... Bb7 {[%clk 0:00:02.2]} 29.
Bd3 {[%clk 0:00:50.6]} 29... f4 {[%clk 0:00:02.4]} 30. Bxh7 {[%clk 0:00:47.9]}
30... Rh8 {[%clk 0:00:02.9]} 31. Bf5 {[%clk 0:00:47.6]} 31... Rac8 {[%clk
0:00:02.7]} 32. h4 {[%clk 0:00:46]} 32... Rc4 {[%clk 0:00:02.4]} 33. b3 {[%clk
0:00:44.9]} 33... Rb4 {[%clk 0:00:01.8]} 34. Bxe6+ {[%clk 0:00:40.6]} 34... Kxe6
{[%clk 0:00:02.7]} 35. Rc7 {[%clk 0:00:40.2]} 35... Ba6 {[%clk 0:00:02.3]} 36.
Rc6+ {[%clk 0:00:37.5]} 36... Kf5 {[%clk 0:00:02.2]} 37. Rf6+ {[%clk 0:00:36.2]}
37... Ke4 {[%clk 0:00:02.1]} 38. Rd1 {[%clk 0:00:35.9]} 38... Rb5 {[%clk
0:00:01.6]} 39. Ng5# {[%clk 0:00:35.4]} 1-0

[Event "*** SCC Grand Prix: Titled Tuesday Blitz"]
[Site "Chess.com"]
[Date "2020.06.02"]
[Round "1"]
[White "BabyBoss31"]
[Black "vovachesss"]
[Result "0-1"]
[WhiteElo "2307"]
[BlackElo "2643"]
[TimeControl "180+1"]
[EndTime "10:06:58 PDT"]
[Termination "vovachesss won by resignation"]

1. d4 {[%clk 0:03:00.3]} 1... Nf6 {[%clk 0:02:51.5]} 2. c4 {[%clk 0:02:59.8]}
2... c5 {[%clk 0:02:50.4]} 3. d5 {[%clk 0:02:59.3]} 3... b5 {[%clk 0:02:51]} 4.
Qc2 {[%clk 0:02:55.5]} 4... bxc4 {[%clk 0:02:46.5]} 5. e4 {[%clk 0:02:49.5]}
5... d6 {[%clk 0:02:42.5]} 6. Bxc4 {[%clk 0:02:48]} 6... g6 {[%clk 0:02:41.2]}
7. Nf3 {[%clk 0:02:43.4]} 7... Bg7 {[%clk 0:02:40.3]} 8. O-O {[%clk 0:02:42.1]}
8... O-O {[%clk 0:02:40.2]} 9. h3 {[%clk 0:02:40.1]} 9... Ba6 {[%clk 0:02:36.6]}
10. Na3 {[%clk 0:02:37.6]} 10... Qb6 {[%clk 0:02:29.7]} 11. Rb1 {[%clk
0:02:32.2]} 11... Nbd7 {[%clk 0:02:28.5]} 12. b3 {[%clk 0:02:25.7]} 12... Rab8
{[%clk 0:02:24.4]} 13. Qe2 {[%clk 0:02:03.1]} 13... Bxc4 {[%clk 0:02:20.6]} 14.
Nxc4 {[%clk 0:02:04]} 14... Qa6 {[%clk 0:02:20.5]} 15. Re1 {[%clk 0:01:36.5]}
15... Rb7 {[%clk 0:02:12.3]} 16. Nfd2 {[%clk 0:01:28.4]} 16... Rfb8 {[%clk
0:02:08.9]} 17. a4 {[%clk 0:01:24.3]} 17... Nb6 {[%clk 0:02:04.7]} 18. Nxb6
{[%clk 0:00:57.1]} 18... Qxe2 {[%clk 0:01:44.1]} 19. Rxe2 {[%clk 0:00:58]} 19...
Rxb6 {[%clk 0:01:23.9]} 20. g3 {[%clk 0:00:57.8]} 20... Nd7 {[%clk 0:01:21]} 21.
f4 {[%clk 0:00:52.9]} 21... Bc3 {[%clk 0:01:17.7]} 22. Re3 {[%clk 0:00:37.7]}
22... Bd4 {[%clk 0:01:15.2]} 23. Kf2 {[%clk 0:00:38.1]} 23... c4 {[%clk
0:01:02.9]} 24. Nxc4 {[%clk 0:00:31.6]} 24... Rxb3 {[%clk 0:01:02.1]} 25. Rxb3
{[%clk 0:00:31.8]} 25... Rxb3 {[%clk 0:01:02.8]} 26. Ke2 {[%clk 0:00:26.3]}
26... Bxe3 {[%clk 0:01:00.8]} 27. Bxe3 {[%clk 0:00:27.2]} 27... Rb4 {[%clk
0:01:00.9]} 28. Na5 {[%clk 0:00:23.4]} 28... Rxa4 {[%clk 0:01:00.7]} 29. Nc6
{[%clk 0:00:24]} 29... Ra2+ {[%clk 0:00:59.8]} 30. Kf3 {[%clk 0:00:24]} 30... a5
{[%clk 0:00:58.6]} 31. Nxe7+ {[%clk 0:00:23.6]} 31... Kf8 {[%clk 0:00:57.4]} 32.
Nc8 {[%clk 0:00:23.9]} 32... a4 {[%clk 0:00:53.6]} 33. Nxd6 {[%clk 0:00:22.4]}
33... a3 {[%clk 0:00:54.1]} 34. Nb5 {[%clk 0:00:19.6]} 34... Ra1 {[%clk
0:00:40.6]} 35. Bd4 {[%clk 0:00:19.4]} 35... Rb1 {[%clk 0:00:36.3]} 36. Nc3
{[%clk 0:00:16.4]} 36... Rb4 {[%clk 0:00:31.4]} 37. Ke3 {[%clk 0:00:13.2]} 37...
Rb2 {[%clk 0:00:29]} 38. Na4 {[%clk 0:00:11.6]} 38... Rb3+ {[%clk 0:00:28.4]}
39. Nc3 {[%clk 0:00:11.8]} 39... a2 {[%clk 0:00:28.5]} 0-1